bitfinex/quotes_ETHUSD_20220226
["timestamp","ask_amount","ask_price","bid_price","bid_amount"]
[1645861577222,10.94,2784.0,2783.4,0.00331708]
[1645861577424,10.94,2784.0,2783.0,0.00331708]
[1645861577425,10.94,2783.5,2783.0,0.00331708]
[1645861577627,13.23626537,2783.4,2783.3,0.00331708]
[1645861577824,13.53626537,2783.4,2782.5,0.00331708]
[1645861578027,10.94,2783.3,2782.3,0.00331708]
[1645861578229,10.94,2783.1,2782.3,0.00331708]
[1645861578428,11.759,2783.1,2782.3,0.00331708]
[1645861578629,0.89905,2782.7,2782.3,0.00331708]
[1645861578833,0.89905,2782.7,2782.1,0.00331708]
[1645861579029,0.89905,2782.7,2781.9,0.76567608]
[1645861579236,11.3836,2782.7,2782.6,0.00461082]
[1645861579466,10.94,2782.5,2781.9,0.00331708]
[1645861579764,10.94,2782.5,2781.7,0.01844903]
[1645861579765,12.73854,2782.3,2781.7,0.01844903]
[1645861580161,12.73854,2782.3,2781.6,0.00331708]
[1645861581564,0.89929,2782.2,2781.6,0.00331708]
[1645861581764,0.89924,2782.1,2781.5,1.1293]
[1645861581965,0.89924,2782.1,2781.4,1.13601708]
[1645861582166,0.89924,2782.1,2781.4,0.00331708]
[1645861583618,0.89924,2782.1,2781.1,3.3831]
[1645861583619,1.17952545,2782.2,2781.2,1.10519957]
[1645861583817,2.79854,2782.3,2781.3,1.10519957]
[1645861583818,1.0,2782.3,2781.3,1.10519957]
[1645861584019,1.0,2782.3,2781.6,0.00493191]
[1645861584219,1.04273,2782.4,2781.6,0.00493191]
[1645861584421,11.0836,2782.6,2782.0,1.417065]
[1645861584622,0.02910329,2782.2,2781.6,0.00824899]
[1645861584819,0.02910329,2782.2,2781.5,0.3596]
[1645861585220,0.02910329,2782.2,2781.7,0.37932868]
[1645861585420,0.02910329,2782.2,2781.9,0.3596]
[1645861586419,0.02910329,2782.2,2782.0,1.66128795]
[1645861587466,0.02910329,2782.2,2782.0,1.66621956]
[1645861587868,0.93891865,2783.4,2782.1,4.0032]
[1645861588070,0.1436,2783.6,2782.3,0.3596]
[1645861588274,0.5,2783.7,2782.5,0.3596]
[1645861588475,0.1436,2784.0,2782.7,0.3596]
[1645861588875,0.1436,2784.0,2782.8,0.00331708]
[1645861589278,0.1436,2784.0,2782.6,0.3596]
[1645861589279,11.8387,2783.8,2782.6,0.3596]
[1645861589476,12.2823,2783.8,2782.7,0.00331708]
[1645861589676,13.47125275,2783.8,2782.5,0.36291708]
[1645861589877,12.57255275,2783.8,2782.6,0.00331708]
[1645861590080,13.57255275,2783.8,2782.6,0.00331708]
[1645861590277,13.57255275,2783.8,2782.7,1.23340025]
[1645861590477,11.83878,2783.5,2782.8,0.00331708]
[1645861590707,11.83878,2783.5,2782.5,0.0049317]
[1645861590708,12.98238,2783.5,2782.5,0.00824878]
[1645861590909,12.98238,2783.5,2782.5,0.00331708]
[1645861591108,12.98238,2783.5,2782.5,0.00824874]
[1645861591312,2.04238,2783.5,2782.5,0.00824874]
[1645861591515,2.04238,2783.5,2782.5,1.3106338]
[1645861591713,1.04238,2783.5,2782.6,0.00331708]
[1645861592315,11.98238,2783.5,2782.6,0.00331708]
[1645861592515,1.04238,2783.5,2782.6,0.00331708]
[1645861592715,2.04238,2783.5,2782.6,0.00331708]
[1645861592914,1.04238,2783.5,2782.6,0.00331708]
[1645861594566,1.06904615,2783.5,2782.6,0.00331708]
[1645861595165,1.55251853,2783.5,2782.6,0.00331708]
[1645861595365,10.94,2783.4,2782.6,0.00331708]
[1645861595765,11.94,2783.4,2782.6,0.00331708]
[1645861596666,1.0,2783.4,2782.6,0.00331708]
[1645861596866,1.06904615,2783.5,2782.6,0.00331708]
[1645861597069,0.17026615,2783.5,2782.6,0.00331708]
[1645861597268,0.02666615,2783.5,2782.6,0.00331708]
[1645861597673,0.02666615,2783.5,2782.6,0.14691708]
[1645861597874,0.02666615,2783.5,2782.7,0.00331708]
[1645861598328,0.12026615,2784.0,2782.7,0.00331708]
[1645861599527,0.12026615,2784.0,2782.7,4.24852377]
[1645861599729,0.02666722,2783.4,2782.8,0.00331708]
[1645861599926,2.803e-05,2783.4,2782.8,0.00331708]
[1645861600126,2.803e-05,2783.4,2782.7,0.74510706]
[1645861600326,2.803e-05,2783.4,2782.7,0.74842414]
[1645861600528,2.803e-05,2783.4,2782.8,0.00331708]
[1645861601027,2.803e-05,2783.4,2782.8,3.50331708]
[1645861601227,2.803e-05,2783.4,2782.9,0.74657814]
[1645861601427,2.803e-05,2783.4,2783.0,0.00331708]
[1645861601628,2.803e-05,2783.4,2783.0,0.74648712]
[1645861601872,2.803e-05,2783.4,2782.9,0.00331708]
[1645861602061,2.803e-05,2783.4,2782.7,0.74992052]
[1645861602264,2.803e-05,2783.4,2782.8,0.00331708]
[1645861603265,2.803e-05,2783.4,2782.8,0.74992052]
[1645861603467,2.803e-05,2783.4,2782.9,0.00331708]
[1645861603867,2.803e-05,2783.4,2782.6,0.7520713]
[1645861604067,2.803e-05,2783.4,2782.7,0.00331708]
[1645861604467,0.89877,2783.6,2782.7,0.00331708]
[1645861604670,0.1436,2783.7,2782.7,0.7520713]
[1645861604870,0.1436,2783.7,2782.8,0.00331708]
[1645861605068,1.94113,2783.8,2782.8,0.00331708]
[1645861605369,1.94113,2783.8,2782.8,0.7520713]
[1645861605370,0.75255891,2783.7,2782.8,0.7520713]
[1645861605613,1.65128891,2783.7,2782.9,0.74875422]
[1645861605814,0.89873,2783.7,2783.0,0.74875422]
[1645861606013,0.89873,2783.6,2783.0,0.74875422]
[1645861606213,0.89873,2783.6,2783.1,0.74875422]
[1645861606415,0.89873,2783.6,2782.6,0.00331708]
[1645861606816,0.89873,2783.6,2782.6,0.75218326]
[1645861607015,0.89873,2783.6,2782.7,0.00331708]
[1645861607418,1.89873,2783.6,2782.7,0.00331708]
[1645861608821,0.75280059,2783.5,2782.7,0.00331708]
[1645861610669,0.89881,2783.4,2782.7,0.00331708]
[1645861611070,1.19790637,2783.5,2782.7,0.00331708]
[1645861611371,1.0,2783.5,2782.7,0.00331708]
[1645861612172,0.75444618,2783.4,2782.7,0.00331708]
[1645861612575,1.92901518,2783.6,2782.7,0.00331708]
[1645861612773,0.75435532,2783.5,2782.7,0.00331708]
[1645861614223,11.99435532,2783.5,2782.7,0.00331708]
[1645861614425,0.75435532,2783.4,2782.7,0.00331708]
[1645861614628,0.78464295,2783.4,2782.7,0.00331708]
[1645861614827,0.75435532,2783.3,2782.7,0.00331708]
[1645861615027,0.75435532,2783.3,2782.6,0.74886618]
[1645861620070,1.0,2783.5,2782.6,0.74886618]
[1645861620071,0.75435532,2783.2,2782.6,0.74886618]
[1645861620276,0.75435532,2783.1,2782.7,0.00331708]
[1645861620475,1.0,2783.5,2783.1,0.75317235]
[1645861620717,0.75650705,2783.4,2783.2,0.74886618]
[1645861621720,11.69650705,2783.4,2783.1,0.75317235]
[1645861621924,0.3,2783.5,2783.1,0.75317235]
[1645861621925,0.75650705,2783.3,2783.1,0.75317235]
[1645861622123,12.0836,2783.5,2783.1,0.75317235]
[1645861622124,0.75650705,2783.2,2783.1,0.75317235]
[1645861622324,0.75650705,2783.3,2783.1,1.50567435]
[1645861622525,0.75650705,2783.3,2783.1,0.75317235]
[1645861623126,0.75656962,2783.2,2783.1,0.75317235]
[1645861623427,0.19826983,2783.4,2783.1,0.75317235]
[1645861623625,0.75656989,2783.3,2783.1,0.74317235]
[1645861623826,0.75656989,2783.3,2783.2,0.75241147]
[1645861626665,0.75656989,2783.4,2783.2,0.75241147]
[1645861627165,0.75656989,2783.3,2783.2,0.75241147]
[1645861627564,0.75656989,2783.5,2783.2,0.75241147]
[1645861627765,0.75656989,2783.4,2783.2,0.75241147]
[1645861627973,0.75656989,2783.3,2783.2,0.75241147]
[1645861628224,0.75656989,2783.5,2783.2,0.75241147]
[1645861628428,0.75656989,2783.4,2783.2,0.75241147]
[1645861628627,0.75656989,2783.3,2783.2,0.75241147]
[1645861629127,0.75656989,2783.5,2783.2,0.75241147]
[1645861629527,1.43369033,2783.5,2783.2,0.75241147]
[1645861630027,0.75656989,2783.4,2783.2,0.75241147]
[1645861630228,1.18532042,2783.6,2783.2,0.75241147]
[1645861630229,0.75656989,2783.3,2783.2,0.75241147]
[1645861632075,0.75656989,2783.3,2783.1,0.53648732]
[1645861636028,1.43369033,2783.3,2783.1,0.53648732]
[1645861636228,0.75656989,2783.3,2783.1,0.53648732]
[1645861637729,1.67712044,2783.4,2783.1,0.53648732]
[1645861637928,0.67712044,2783.4,2783.1,0.53648732]
[1645861639773,2.06521437,2783.6,2783.2,3.5]
[1645861639774,1.0,2783.6,2783.2,3.5]
[1645861639974,0.67712044,2783.9,2783.5,1.27005949]
[1645861640175,0.67712044,2784.0,2783.5,1.27005949]
[1645861640579,0.67712044,2784.0,2783.2,4.7213]
[1645861640780,0.67712044,2784.0,2783.2,1.2213]
[1645861641381,0.67712044,2784.0,2783.2,4.7213]
[1645861641580,0.67712044,2784.0,2783.2,1.2213]
[1645861641781,0.67712044,2784.0,2783.5,1.03538252]
[1645861641979,0.67712044,2783.9,2783.5,1.03538252]
[1645861642179,0.67712044,2784.0,2783.5,1.03538252]
[1645861642380,0.67712044,2784.0,2783.2,1.2213]
[1645861642685,0.67712044,2784.2,2783.4,0.3596]
[1645861642982,0.67712044,2784.3,2783.5,3.8596]
[1645861643635,0.67712044,2784.3,2783.9,1.06847527]
[1645861643835,0.02745322,2783.8,2783.5,3.8596]
[1645861644034,0.02745322,2783.8,2783.6,0.3596]
[1645861645039,0.02745322,2783.8,2783.7,1.41992784]
[1645861645934,0.02745322,2783.8,2783.7,0.3596]
[1645861646139,0.02745322,2783.8,2783.4,0.3596]
[1645861646435,0.02745322,2783.8,2783.3,3.6436]
[1645861646634,0.02745322,2783.8,2783.3,0.1436]
[1645861647874,0.02745322,2783.8,2783.4,1.14923022]
[1645861648078,0.02745322,2783.8,2783.3,0.1436]
[1645861648479,0.02745322,2783.8,2783.1,0.53648732]
[1645861648684,11.94,2783.6,2783.1,0.53648732]
[1645861648881,11.83889,2783.5,2783.1,0.53648732]
[1645861649081,1.0,2783.3,2783.1,0.53648732]
[1645861650719,0.89887,2783.2,2783.1,0.53648732]
[1645861652128,0.89887,2783.2,2783.1,1.28483163]
[1645861652129,1.66319049,2783.2,2783.1,1.28483163]
[1645861652329,0.76432049,2783.2,2783.1,1.28483163]
[1645861652926,0.76432049,2783.4,2783.1,1.28483163]
[1645861653225,0.76432049,2783.3,2783.2,0.74811128]
[1645861653425,0.76432049,2783.4,2783.2,0.74811128]
[1645861656670,0.76432049,2783.3,2783.2,0.74811128]
[1645861657271,0.76432049,2783.5,2783.2,0.74811128]
[1645861658923,12.60308049,2783.5,2783.2,0.74811128]
[1645861659126,1.0,2783.2,2783.1,0.53648732]
[1645861659323,1.76432049,2783.2,2783.1,1.28434961]
[1645861660024,2.06432049,2783.2,2783.1,0.53648732]
[1645861660222,2.96319049,2783.2,2783.1,0.53648732]
[1645861660525,2.66319049,2783.2,2783.1,1.28423046]
[1645861660826,3.96319049,2783.2,2783.1,0.53648732]
[1645861661024,12.29870065,2784.0,2783.4,7.0]
[1645861661227,2.77359927,2784.8,2783.4,7.0]
[1645861661228,0.37549109,2784.9,2783.5,10.5]
[1645861661430,2.62574713,2785.5,2783.7,0.01269593]
[1645861661627,3.1651295,2786.0,2784.9,0.01258777]
[1645861661889,0.68030167,2785.2,2785.0,5.04999999]
[1645861662174,1.36060335,2785.7,2785.1,6.7954405]
[1645861662175,0.68012627,2785.7,2785.1,6.7954405]
[1645861662377,1.18012627,2785.8,2785.2,0.519]
[1645861662575,0.5,2785.8,2785.3,3.5]
[1645861662774,0.5,2785.8,2785.4,0.519]
[1645861662974,0.68012627,2786.3,2785.4,0.519]
[1645861663184,11.62012627,2786.3,2785.4,0.519]
[1645861663380,0.0039211,2786.5,2785.4,0.519]
[1645861663381,0.91075613,2786.5,2785.4,0.519]
[1645861663582,0.0039211,2786.7,2785.4,0.519]
[1645861663982,1.22834866,2786.6,2786.0,1.27510134]
[1645861664182,1.22834866,2786.6,2785.7,0.519]
[1645861664379,0.00249788,2786.2,2785.7,0.519]
[1645861665380,0.0039211,2786.7,2785.7,0.519]
[1645861665623,0.0039211,2786.7,2785.5,3.8596]
[1645861665823,0.00494478,2786.1,2785.6,0.519]
[1645861666225,0.00494478,2786.1,2785.9,1.39437804]
[1645861666623,0.0039211,2786.7,2785.9,1.39437804]
[1645861666826,0.00494474,2786.1,2785.9,1.39437804]
[1645861667431,0.00494474,2786.1,2786.0,3.5]
[1645861667629,0.00494474,2786.1,2786.0,4.019]
[1645861667828,0.0039211,2786.7,2786.0,4.3786]
[1645861668130,0.01977582,2786.6,2786.2,0.3596]
[1645861668331,0.01977582,2786.6,2786.3,0.519]
[1645861668528,0.01977582,2786.6,2786.4,1.20434437]
[1645861668730,0.01977582,2786.6,2786.5,4.019]
[1645861668928,0.01977582,2786.6,2786.5,0.519]
[1645861669230,0.00494429,2786.6,2786.5,1.41633]
[1645861670067,0.00494429,2786.6,2786.5,4.91633]
[1645861670269,0.0039211,2787.3,2786.6,2.6920496]
[1645861670469,0.01977404,2787.1,2786.8,0.17948]
[1645861671470,0.0039211,2787.4,2786.8,0.17948]
[1645861671673,0.00494389,2787.1,2787.0,1.02646722]
[1645861672472,0.00494389,2787.1,2786.8,0.17948]
[1645861672671,7.4539211,2787.5,2786.8,0.17948]
[1645861672873,0.00494381,2787.2,2786.8,0.17948]
[1645861673124,0.00494381,2787.2,2786.6,1.7946997]
[1645861673328,0.00494381,2787.2,2786.4,0.67543321]
[1645861673329,0.00494381,2787.2,2786.4,0.1434]
[1645861673528,0.00494381,2787.2,2786.3,0.25]
[1645861673529,1.00494381,2787.2,2786.3,0.25]
[1645861673727,1.20470668,2786.7,2786.1,0.01086625]
[1645861674730,1.20470668,2786.7,2786.1,0.01006625]
[1645861675332,0.00494438,2786.5,2786.1,0.01006625]
[1645861676130,1.20862778,2786.7,2786.1,0.01006625]
[1645861676328,1.20470668,2786.7,2786.1,0.01006625]
[1645861676533,0.00452123,2786.4,2786.1,0.01006625]
[1645861677371,0.0039211,2786.8,2786.1,0.01006625]
[1645861677769,0.00452127,2786.4,2786.1,0.01006625]
[1645861678573,1.38109021,2786.5,2786.1,0.01006625]
[1645861678774,1.42218899,2786.5,2786.1,0.01006625]
[1645861678972,0.00452127,2786.4,2786.1,0.01006625]
[1645861679774,1.42218899,2786.5,2786.1,0.01006625]
[1645861679977,0.04109878,2786.5,2786.1,0.01006625]
[1645861680175,0.00466056,2786.4,2786.1,0.01006625]
[1645861681122,0.04109878,2786.5,2786.1,0.01006625]
[1645861681322,0.00466056,2786.4,2786.1,0.01006625]
[1645861682323,0.04109878,2786.5,2786.1,0.01006625]
[1645861682526,0.00466056,2786.4,2786.1,0.01006625]
[1645861683527,0.04109878,2786.5,2786.1,0.01006625]
[1645861683726,0.00431246,2786.4,2786.1,0.01006625]
[1645861684666,0.04109878,2786.5,2786.1,0.01006625]
[1645861685067,0.00431246,2786.4,2786.1,0.01006625]
[1645861685867,0.04109878,2786.5,2786.1,0.01006625]
[1645861686066,0.00431246,2786.4,2786.1,0.01006625]
[1645861687064,0.04109878,2786.5,2786.1,0.01006625]
[1645861687265,0.00434761,2786.4,2786.1,0.01006625]
[1645861688320,0.04109878,2786.5,2786.1,0.01006625]
[1645861688518,0.00434761,2786.4,2786.1,0.01006625]
[1645861689417,0.04109878,2786.5,2786.1,0.01006625]
[1645861689620,0.04109878,2786.5,2786.3,1.0419853]
[1645861689621,0.00434761,2786.4,2786.3,1.0419853]
[1645861690621,0.04109878,2786.5,2786.3,1.0419853]
[1645861690820,0.04328018,2786.5,2786.3,1.0419853]
[1645861691864,0.04109878,2786.5,2786.1,0.01006625]
[1645861692065,0.04328018,2786.5,2786.1,0.01006625]
[1645861692868,0.04328018,2786.5,2786.2,1.40034329]
[1645861693069,0.04109878,2786.5,2786.2,1.40034329]
[1645861693271,0.0021814,2786.4,2786.2,1.40034329]
[1645861693471,0.0021814,2786.4,2786.1,0.01006625]
[1645861694272,0.04109878,2786.5,2786.1,0.01006625]
[1645861694474,0.00473251,2786.4,2786.2,1.07880708]
[1645861695473,0.04109878,2786.5,2786.2,1.07880708]
[1645861695721,0.00473246,2786.4,2786.2,1.07880708]
[1645861696521,0.00142401,2786.2,2786.1,0.01006625]
[1645861699027,0.00142401,2786.2,2786.1,1.05923863]
[1645861700580,0.00142401,2786.2,2786.1,1.41883863]
[1645861701280,0.0172917,2786.7,2786.4,0.3596]
[1645861701479,0.0039211,2787.2,2786.9,1.43812295]
[1645861701678,0.0039211,2787.5,2786.9,1.43812295]
[1645861701877,0.0039211,2787.7,2786.9,1.43812295]
[1645861702077,0.0039211,2787.8,2786.9,1.43812295]
[1645861702479,0.0039211,2787.8,2787.1,1.0767163]
[1645861702678,1.1252217,2787.5,2787.1,1.0767163]
[1645861703330,1.1252217,2787.5,2786.5,1.1554]
[1645861703624,0.1473211,2787.4,2786.5,1.1554]
[1645861704223,0.1473211,2787.4,2786.6,1.51669719]
[1645861704622,0.0039211,2787.4,2786.6,1.51669719]
[1645861704823,3.20063778,2787.5,2786.6,1.51669719]
[1645861705023,0.0039211,2787.4,2786.6,1.51669719]
[1645861705425,0.00496103,2787.1,2786.6,1.51669719]
[1645861706323,0.0039211,2787.4,2786.6,1.51669719]
[1645861706524,0.00496116,2787.0,2786.6,1.51669719]
[1645861706982,0.00496116,2787.0,2786.6,2.41412299]
[1645861707181,0.00496116,2787.0,2786.7,1.51669719]
[1645861707381,0.0039211,2787.4,2786.7,1.51669719]
[1645861707585,1.1252217,2787.5,2786.7,1.51669719]
[1645861707783,0.00496121,2786.9,2786.7,1.51669719]
[1645861708284,0.00496121,2786.9,2786.8,1.51669719]
[1645861708687,0.0039211,2787.4,2786.6,1.51669719]
[1645861708888,0.00496116,2787.0,2786.8,0.03190878]
[1645861709889,0.0039211,2787.4,2786.9,1.51659623]
[1645861710088,0.00496112,2787.0,2786.9,1.51659623]
[1645861711125,0.0039211,2787.4,2786.9,1.51659623]
[1645861711325,1.1252217,2787.5,2786.8,0.03190878]
[1645861711326,0.00496107,2787.1,2786.8,0.03190878]
[1645861711524,0.00496107,2787.1,2786.9,1.51658724]
[1645861712121,0.00496107,2787.1,2786.8,0.03190878]
[1645861712322,0.93059744,2787.5,2786.8,0.03190878]
[1645861712323,0.90683503,2787.5,2786.8,0.03190878]
[1645861712525,0.00496103,2787.1,2786.8,0.03190878]
[1645861713525,1.04240882,2787.3,2786.8,0.03190878]
[1645861713727,0.00496107,2787.1,2786.8,0.0429916]
[1645861714574,1.04632992,2787.3,2786.8,0.0429916]
[1645861714773,1.04240882,2787.3,2786.8,0.0429916]
[1645861714972,0.00496107,2787.1,2786.8,0.0429916]
[1645861715874,1.04632992,2787.3,2786.8,0.0429916]
[1645861716072,0.00496107,2787.1,2786.8,0.0429916]
[1645861717073,1.04632992,2787.3,2786.8,0.0429916]
[1645861717275,0.00496107,2787.1,2786.8,0.0429916]
[1645861718221,0.90683503,2787.2,2786.8,0.0429916]
[1645861718420,1.35023503,2787.2,2786.2,3.0164]
[1645861718621,1.35023503,2787.2,2786.2,0.25]
[1645861718622,0.90683503,2786.8,2786.2,0.25]
[1645861718825,0.90683503,2786.5,2786.1,0.01006625]
[1645861719020,1.42583503,2786.5,2786.1,0.01006625]
[1645861719221,1.0,2786.3,2786.1,0.01006625]
[1645861719421,13.87174664,2786.3,2786.1,0.01006625]
[1645861719621,0.1434,2786.2,2786.1,0.01006625]
[1645861719823,1.56923503,2786.2,2786.1,0.01006625]
[1645861720222,2.56923503,2786.2,2786.1,0.01006625]
[1645861720422,12.6024,2786.2,2786.1,0.01006625]
[1645861720626,13.6024,2786.2,2786.1,0.01006625]
[1645861720825,14.69162847,2786.2,2786.1,0.01006625]
[1645861721025,13.78638131,2786.2,2786.1,0.01006625]
[1645861722675,15.66867461,2786.2,2786.1,0.01006625]
[1645861723074,15.14663386,2786.2,2786.1,0.01006625]
[1645861723282,20.14663386,2786.2,2786.1,0.01006625]
[1645861723480,20.67371771,2786.2,2786.1,0.01006625]
[1645861723681,19.31346516,2786.2,2786.1,0.01006625]
[1645861724083,14.31346516,2786.2,2786.1,0.01006625]
[1645861724282,13.81107486,2786.2,2786.1,0.01006625]
[1645861724485,13.53131144,2786.2,2786.1,0.01006625]
[1645861724882,12.62709355,2786.2,2786.1,0.01006625]
[1645861725083,13.62709355,2786.2,2786.1,0.01006625]
[1645861725483,14.53129799,2786.2,2786.1,0.01006625]
[1645861727019,13.62709355,2786.2,2786.1,0.01006625]
[1645861727224,1.54369355,2786.2,2786.1,0.01006625]
[1645861727423,0.02469355,2786.2,2786.1,0.01006625]
[1645861729778,0.92264355,2786.2,2786.1,0.01006625]
[1645861731083,0.02469355,2786.2,2786.1,0.01006625]
[1645861734231,1.41274664,2786.3,2786.1,0.01006625]
[1645861738676,1.71274664,2786.3,2786.1,0.00861944]
[1645861739278,1.91982696,2786.3,2786.1,0.00861944]
[1645861739482,2.06322696,2786.3,2786.1,0.00861944]
[1645861739678,2.09416531,2786.3,2786.1,0.00861944]
[1645861740719,2.99210531,2786.3,2786.1,0.00861944]
[1645861741120,3.99210531,2786.3,2786.1,0.00861944]
[1645861742721,1.0,2786.2,2786.1,0.00861944]
[1645861743824,4.29210531,2786.3,2786.1,0.00861944]
[1645861744026,3.99210531,2786.3,2786.1,0.00861944]
[1645861746486,2.54870531,2786.3,2786.1,0.00861944]
[1645861746683,2.34162499,2786.3,2786.1,0.00861944]
[1645861747784,2.64162499,2786.3,2786.1,0.00861944]
[1645861747985,2.83436126,2786.3,2786.1,0.00861944]
[1645861748232,3.83436126,2786.3,2786.1,0.00861944]
[1645861748633,3.97776126,2786.3,2786.1,0.00861944]
[1645861750431,3.83436126,2786.3,2786.1,0.00861944]
[1645861753681,2.34162499,2786.3,2786.1,0.00861944]
[1645861753882,3.83224112,2786.3,2786.1,0.00861944]
[1645861758531,3.64162499,2786.3,2786.1,0.00861944]
[1645861759389,3.83674716,2786.3,2786.1,0.00861944]
[1645861760179,3.98014716,2786.3,2786.1,0.00861944]
[1645861762379,3.98014716,2786.3,2786.1,0.00739603]
[1645861763229,3.83674716,2786.3,2786.1,0.00739603]
[1645861764330,20.44,2786.2,2786.1,9.603e-05]
[1645861764535,23.6036644,2786.2,2786.1,9.603e-05]
[1645861764733,23.6036644,2786.2,2784.3,7.21952764]
[1645861764734,0.0008,2785.9,2784.3,7.21952764]
[1645861764930,0.0008,2785.9,2784.3,1.1392]
[1645861764931,0.8983,2785.5,2784.3,1.1392]
[1645861765131,4.92661719,2785.4,2784.3,1.1392]
[1645861765331,0.1436,2785.3,2784.3,1.1392]
[1645861765930,1.21448163,2784.6,2784.3,1.1392]
[1645861766130,1.21448163,2784.6,2783.9,5.61247149]
[1645861766331,1.21448163,2784.6,2783.9,1.03712764]
[1645861766530,1.21448163,2784.6,2784.3,0.00233271]
[1645861766982,0.89838,2784.8,2784.6,0.40439375]
[1645861767581,1.23457985,2784.7,2784.6,0.40439375]
[1645861767783,1.23457985,2784.7,2784.6,0.40919026]
[1645861768887,1.23457985,2784.7,2784.6,0.40439375]
[1645861773335,1.1436,2785.1,2784.6,0.40439375]
[1645861773535,1.1436,2785.2,2784.6,0.40439375]
[1645861773732,0.4436,2785.2,2784.6,0.40439375]
[1645861774570,0.02620545,2784.7,2784.6,0.40439375]
[1645861775369,1.11502189,2784.7,2784.6,0.40439375]
[1645861779341,0.02620545,2784.7,2784.6,0.40439375]
[1645861780839,1.14890225,2784.7,2784.6,0.40439375]
[1645861784694,1.14890225,2784.7,2784.6,1.90151088]
[1645861785729,0.02620545,2784.7,2784.6,1.90151088]
[1645861786927,0.02620545,2784.7,2784.6,2.26111088]
[1645861787329,3.67520397,2785.9,2785.0,0.02590429]
[1645861787529,0.0758704,2785.8,2785.1,1.49582619]
[1645861787930,0.75584622,2785.8,2785.0,0.02590429]
[1645861788135,1.25399704,2785.6,2785.1,2.83426818]
[1645861788334,0.0758704,2785.5,2785.1,1.34294212]
[1645861788534,0.0758704,2785.4,2785.2,1.49591478]
[1645861788734,0.90317012,2785.9,2785.2,1.49591478]
[1645861788933,0.0758672,2785.8,2785.2,1.49591478]
[1645861789134,0.0758672,2785.8,2785.1,1.33859069]
[1645861789576,0.0758672,2785.8,2785.2,1.49582949]
[1645861790778,1.51924297,2785.8,2785.2,1.49582949]
[1645861790978,0.0758672,2785.7,2785.2,1.49582949]
[1645861793334,0.00515867,2785.9,2785.2,2.39372949]
[1645861793335,0.0758672,2785.6,2785.2,2.39372949]
[1645861793531,0.0758672,2785.5,2785.3,1.49582949]
[1645861793731,0.00515867,2785.9,2785.3,1.49582949]
[1645861793932,0.07586183,2785.8,2785.3,1.49582949]
[1645861794132,0.07586183,2785.7,2785.3,1.49582949]
[1645861795132,0.07586183,2785.6,2785.3,1.49582949]
[1645861795334,0.07586183,2785.5,2785.3,1.49582949]
[1645861795531,0.00515866,2785.9,2785.3,1.49582949]
[1645861795931,0.07586149,2785.8,2785.3,1.49582949]
[1645861796133,1.18328289,2785.8,2785.3,1.49582949]
[1645861796332,0.07586149,2785.7,2785.3,1.49582949]
[1645861799782,0.07586295,2785.6,2785.4,1.49529829]
[1645861799978,1.1074214,2785.8,2785.2,0.8979]
[1645861799979,0.07586295,2785.5,2785.2,0.8979]
[1645861800177,0.07586295,2785.7,2785.3,1.49528943]
[1645861800376,0.0758631,2785.6,2785.3,1.49528943]
[1645861800624,0.0758631,2785.5,2785.3,1.49528943]
[1645861800925,1.1074214,2785.8,2785.3,1.49528943]
[1645861801124,0.07586198,2785.7,2785.3,1.49528943]
[1645861801725,0.07586198,2785.7,2785.1,0.00481767]
[1645861801922,1.19539643,2785.3,2785.2,1.49532179]
[1645861802125,1.27125841,2785.3,2785.2,1.49532179]
[1645861802524,1.27125841,2785.3,2785.1,1.49532179]
[1645861802725,1.19539643,2785.3,2785.1,1.50013934]
[1645861802926,1.19539643,2785.3,2785.2,1.49532179]
[1645861803126,1.27126786,2785.3,2785.1,0.00481755]
[1645861803331,0.07587143,2785.2,2785.1,0.00481755]
[1645861803528,0.07587143,2785.2,2785.1,1.49581261]
[1645861803931,0.07587143,2785.2,2785.1,1.50045629]
[1645861804134,0.07587143,2785.2,2785.1,0.00464368]
[1645861804135,3.57587143,2785.2,2785.1,0.00464368]
[1645861804411,0.71917506,2785.2,2785.1,0.00464368]
[1645861804609,5.21917506,2785.2,2785.1,0.00464368]
[1645861804808,2.71917506,2785.2,2785.0,0.02590429]
[1645861805012,0.07587143,2785.1,2785.0,0.02590429]
[1645861805209,0.07587143,2785.1,2785.0,0.03054801]
[1645861806109,0.07587143,2785.1,2785.0,0.02590429]
[1645861807315,0.07587143,2785.3,2785.0,0.02590429]
[1645861807518,0.07587143,2785.2,2785.1,1.49676791]
[1645861808015,0.67997582,2785.7,2785.0,0.02590429]
[1645861808234,1.04531995,2785.2,2785.1,1.49761959]
[1645861808438,1.04531995,2785.2,2785.0,0.02590429]
[1645861808439,1.12119138,2785.2,2785.0,0.02590429]
[1645861808635,0.07587143,2785.1,2785.0,0.02590429]
[1645861808835,0.07587143,2785.1,2785.0,1.5236634]
[1645861811437,0.07587143,2785.1,2785.0,1.52215529]
[1645861817026,0.07587143,2785.5,2785.0,1.52215529]
[1645861817226,0.07587143,2785.5,2785.1,1.49775911]
[1645861818029,1.18217499,2785.3,2785.1,1.49775911]
[1645861818233,0.07587143,2785.2,2785.1,1.5024065]
[1645861819378,0.07587143,2785.2,2785.1,1.49775911]
[1645861819780,0.07587143,2785.5,2785.1,1.49775911]
[1645861819981,0.07587143,2785.4,2785.1,1.49775911]
[1645861820178,0.07587143,2785.3,2785.1,1.49775911]
[1645861820380,0.07587143,2785.2,2785.1,1.49775911]
[1645861820580,1.38613034,2785.2,2785.1,1.50240646]
[1645861820779,0.07587143,2785.2,2785.1,1.50240646]
[1645861821379,0.07587143,2785.5,2785.1,1.50240646]
[1645861821582,0.07587143,2785.4,2785.2,1.49775911]
[1645861821782,0.89815,2785.6,2785.3,1.49775911]
[1645861821982,1.09592133,2785.4,2785.0,0.02904353]
[1645861822282,0.07587141,2785.3,2785.1,1.49766544]
[1645861823139,0.07587141,2785.3,2785.1,1.50232445]
[1645861823347,0.07587141,2785.3,2785.2,1.49766544]
[1645861823945,0.07587141,2785.3,2785.1,1.49766544]
[1645861824148,0.07587141,2785.3,2785.2,1.49766544]
[1645861824647,0.07587141,2785.3,2785.1,1.50232449]
[1645861825247,0.07587141,2785.3,2785.1,1.49766544]
[1645861825449,0.07587141,2785.3,2785.1,1.50232445]
[1645861826449,0.07587141,2785.3,2785.1,1.49766544]
[1645861826650,0.07587141,2785.3,2785.1,1.50232367]
[1645861827684,0.07587141,2785.3,2785.1,1.49766544]
[1645861827884,0.07587141,2785.3,2785.1,1.50232367]
[1645861828789,0.07587141,2785.3,2785.0,0.02439618]
[1645861828987,0.07587141,2785.3,2785.1,0.00465823]
[1645861829188,0.07587141,2785.3,2785.2,1.49936441]
[1645861829488,0.07587141,2785.3,2785.2,1.49943717]
[1645861829688,0.07587141,2785.3,2785.2,1.49932203]
[1645861829888,0.07587141,2785.3,2785.1,0.00465823]
[1645861830088,0.07587141,2785.3,2785.0,0.02439618]
[1645861830089,0.07587141,2785.3,2785.2,1.49895349]